[Event "Live Chess"]
[Site "Chess.com"]
[Date "2024.06.02"]
[Round "-"]
[White "PavelChernomordik"]
[Black "Anareza_Firouzja"]
[Result "1-0"]
[WhiteElo "2503"]
[BlackElo "1881"]
[TimeControl "300"]
[EndTime "7:00:34 PDT"]
[Termination "PavelChernomordik won by resignation"]

1. e4 {[%clk 0:04:55.7]} 1... c5 {[%clk 0:04:58.5]} 2. Nc3 {[%clk 0:04:54.3]}
2... a6 {[%clk 0:04:55.7]} 3. g3 {[%clk 0:04:52.9]} 3... b5 {[%clk 0:04:55.2]}
4. Bg2 {[%clk 0:04:51.9]} 4... Bb7 {[%clk 0:04:54.8]} 5. Qe2 {[%clk 0:04:51]}
5... g6 {[%clk 0:04:52.6]} 6. d3 {[%clk 0:04:47.9]} 6... Bg7 {[%clk 0:04:50.2]}
7. Be3 {[%clk 0:04:46.6]} 7... d6 {[%clk 0:04:48.2]} 8. f4 {[%clk 0:04:45.3]}
8... Nc6 {[%clk 0:04:46.9]} 9. Nf3 {[%clk 0:04:43.9]} 9... Nd4 {[%clk
0:04:45.1]} 10. Qf2 {[%clk 0:04:42.8]} 10... Nxf3+ {[%clk 0:04:36.5]} 11. Bxf3
{[%clk 0:04:41.6]} 11... e6 {[%clk 0:04:34.6]} 12. d4 {[%clk 0:04:36.7]} 12...
cxd4 {[%clk 0:04:25.1]} 13. Bxd4 {[%clk 0:04:35.3]} 13... Nf6 {[%clk 0:04:23.1]}
14. e5 {[%clk 0:04:15.5]} 14... Bxf3 {[%clk 0:03:59.4]} 15. exf6 {[%clk
0:04:12.7]} 15... Bxh1 {[%clk 0:03:58.2]} 16. fxg7 {[%clk 0:04:11.1]} 16... Rg8
{[%clk 0:03:57.9]} 17. O-O-O {[%clk 0:04:06.9]} 17... Bb7 {[%clk 0:03:46.6]} 18.
Be5 {[%clk 0:03:58.9]} 18... dxe5 {[%clk 0:03:34.2]} 19. Rxd8+ {[%clk 0:03:57]}
19... Rxd8 {[%clk 0:03:33.3]} 20. fxe5 {[%clk 0:03:40.1]} 20... Rxg7 {[%clk
0:03:20.1]} 21. Qb6 {[%clk 0:03:35.6]} 21... Rd7 {[%clk 0:03:14.8]} 22. a4
{[%clk 0:03:26.8]} 22... bxa4 {[%clk 0:03:11.8]} 23. Nxa4 {[%clk 0:03:25.5]}
23... Bf3 {[%clk 0:02:51.3]} 24. b4 {[%clk 0:03:17.3]} 24... Be4 {[%clk
0:02:07.1]} 25. Nc5 {[%clk 0:03:07.2]} 25... Rd4 {[%clk 0:01:59.2]} 26. Nxe4
{[%clk 0:02:57.8]} 1-0

[Event "Live Chess"]
[Site "Chess.com"]
[Date "2024.06.02"]
[Round "-"]
[White "Eva3337"]
[Black "nyclone"]
[Result "0-1"]
[WhiteElo "1168"]
[BlackElo "1158"]
[TimeControl "300"]
[EndTime "7:00:50 PDT"]
[Termination "nyclone won on time"]

1. e4 {[%clk 0:04:56.5]} 1... e6 {[%clk 0:04:59.4]} 2. d4 {[%clk 0:04:53.2]}
2... b6 {[%clk 0:04:58.1]} 3. e5 {[%clk 0:04:50.2]} 3... Bb7 {[%clk 0:04:56.9]}
4. Nf3 {[%clk 0:04:45.4]} 4... Ne7 {[%clk 0:04:55.4]} 5. Be2 {[%clk 0:04:40.9]}
5... d6 {[%clk 0:04:53.7]} 6. Bf4 {[%clk 0:04:34.1]} 6... g6 {[%clk 0:04:52.3]}
7. O-O {[%clk 0:04:31.7]} 7... Bg7 {[%clk 0:04:50]} 8. Nc3 {[%clk 0:04:20.5]}
8... dxe5 {[%clk 0:04:45.7]} 9. dxe5 {[%clk 0:04:18.9]} 9... O-O {[%clk
0:04:43.4]} 10. Qd2 {[%clk 0:04:14.4]} 10... Nec6 {[%clk 0:04:24.2]} 11. Rad1
{[%clk 0:04:10.5]} 11... Qe7 {[%clk 0:04:18.6]} 12. Bh6 {[%clk 0:03:54.1]} 12...
Rd8 {[%clk 0:04:13.9]} 13. Qe3 {[%clk 0:03:46.8]} 13... Nd7 {[%clk 0:04:04.4]}
14. Bxg7 {[%clk 0:03:43.6]} 14... Kxg7 {[%clk 0:04:02.3]} 15. Bb5 {[%clk
0:03:29.3]} 15... a6 {[%clk 0:03:54.1]} 16. Bxc6 {[%clk 0:03:24]} 16... Bxc6
{[%clk 0:03:53]} 17. h4 {[%clk 0:03:15.8]} 17... Bxf3 {[%clk 0:03:50.1]} 18.
Qxf3 {[%clk 0:03:09.5]} 18... Nxe5 {[%clk 0:03:47.2]} 19. Qe4 {[%clk 0:02:56.8]}
19... Nd7 {[%clk 0:03:33.1]} 20. h5 {[%clk 0:02:48.4]} 20... Nf6 {[%clk
0:03:30.6]} 21. Qh4 {[%clk 0:02:37.8]} 21... Kf8 {[%clk 0:03:03.8]} 22. hxg6
{[%clk 0:02:27.4]} 22... hxg6 {[%clk 0:02:54.8]} 23. Qh6+ {[%clk 0:02:24]} 23...
Kg8 {[%clk 0:02:42.8]} 24. Rd3 {[%clk 0:02:15.8]} 24... Rxd3 {[%clk 0:02:39]}
25. cxd3 {[%clk 0:02:14.5]} 25... Nh7 {[%clk 0:02:37.6]} 26. Ne4 {[%clk
0:02:08.1]} 26... Qf8 {[%clk 0:02:31]} 27. Qf4 {[%clk 0:02:03.1]} 27... f5
{[%clk 0:02:20.3]} 28. Ng5 {[%clk 0:01:58.1]} 28... Nxg5 {[%clk 0:02:18.5]} 29.
Qxg5 {[%clk 0:01:56]} 29... Kg7 {[%clk 0:02:17.7]} 30. Qf4 {[%clk 0:01:52.8]}
30... Qe7 {[%clk 0:02:13.6]} 31. Qe5+ {[%clk 0:01:44.8]} 31... Kf7 {[%clk
0:02:09.6]} 32. f4 {[%clk 0:01:37.2]} 32... Rd8 {[%clk 0:01:56.9]} 33. Rc1
{[%clk 0:01:33.5]} 33... c5 {[%clk 0:01:39.1]} 34. Rd1 {[%clk 0:01:21.2]} 34...
Rd5 {[%clk 0:01:29.9]} 35. Qh8 {[%clk 0:01:08.5]} 35... Qf8 {[%clk 0:01:08.7]}
36. Qh7+ {[%clk 0:00:53.7]} 36... Qg7 {[%clk 0:01:03.9]} 37. Qh3 {[%clk
0:00:50.4]} 37... Qxb2 {[%clk 0:00:57.5]} 38. g4 {[%clk 0:00:37.2]} 38... Qd4+
{[%clk 0:00:50.4]} 39. Kh1 {[%clk 0:00:27.7]} 39... Qxf4 {[%clk 0:00:47.9]} 40.
Qh7+ {[%clk 0:00:20.2]} 40... Kf6 {[%clk 0:00:40.7]} 41. Qh4+ {[%clk 0:00:17.7]}
41... Qg5 {[%clk 0:00:37]} 42. Qh8+ {[%clk 0:00:16.5]} 42... Kf7 {[%clk
0:00:33.6]} 43. Qh7+ {[%clk 0:00:15.6]} 43... Kf6 {[%clk 0:00:30.1]} 44. Qh8+
{[%clk 0:00:14.7]} 44... Ke7 {[%clk 0:00:29]} 45. Qh7+ {[%clk 0:00:13.9]} 45...
Kd6 {[%clk 0:00:26.3]} 46. Qb7 {[%clk 0:00:11.1]} 46... Qxg4 {[%clk 0:00:18.4]}
47. Qb8+ {[%clk 0:00:09.3]} 47... Ke7 {[%clk 0:00:17]} 48. Qb7+ {[%clk
0:00:05.9]} 48... Kf6 {[%clk 0:00:15.9]} 0-1

[Event "Live Chess"]
[Site "Chess.com"]
[Date "2024.06.02"]
[Round "-"]
[White "KeithArkell"]
[Black "seasidecastle27"]
[Result "1-0"]
[WhiteElo "2425"]
[BlackElo "1951"]
[TimeControl "300"]
[EndTime "7:01:36 PDT"]
[Termination "KeithArkell won by resignation"]

1. d4 {[%clk 0:04:57.3]} 1... e6 {[%clk 0:04:59.2]} 2. Nf3 {[%clk 0:04:56.4]}
2... d5 {[%clk 0:04:58.2]} 3. c4 {[%clk 0:04:55.2]} 3... Nf6 {[%clk 0:04:57]} 4.
cxd5 {[%clk 0:04:54.5]} 4... exd5 {[%clk 0:04:55.7]} 5. Nc3 {[%clk 0:04:53.9]}
5... Be7 {[%clk 0:04:54.9]} 6. Bg5 {[%clk 0:04:53.1]} 6... O-O {[%clk
0:04:52.5]} 7. e3 {[%clk 0:04:52.6]} 7... c6 {[%clk 0:04:51.5]} 8. Bxf6 {[%clk
0:04:51.6]} 8... Bxf6 {[%clk 0:04:50.1]} 9. b4 {[%clk 0:04:51.4]} 9... Nd7
{[%clk 0:04:45.6]} 10. b5 {[%clk 0:04:49]} 10... Nb6 {[%clk 0:04:34.6]} 11. bxc6
{[%clk 0:04:47.7]} 11... bxc6 {[%clk 0:04:33.2]} 12. Rc1 {[%clk 0:04:47.5]}
12... Bd7 {[%clk 0:04:28.4]} 13. Be2 {[%clk 0:04:46.1]} 13... Rc8 {[%clk
0:04:26.3]} 14. O-O {[%clk 0:04:45.1]} 14... c5 {[%clk 0:04:24.9]} 15. dxc5
{[%clk 0:04:42.5]} 15... Rxc5 {[%clk 0:04:23.4]} 16. Qd2 {[%clk 0:04:39.8]}
16... Qc7 {[%clk 0:04:14]} 17. Nd4 {[%clk 0:04:37.9]} 17... Rc8 {[%clk
0:04:06.7]} 18. Ba6 {[%clk 0:04:35]} 18... Rb8 {[%clk 0:04:00.5]} 19. Ncb5
{[%clk 0:04:32.4]} 19... Bxb5 {[%clk 0:03:44.5]} 20. Nxb5 {[%clk 0:04:27.3]}
20... Qe7 {[%clk 0:03:37.4]} 21. Rxc5 {[%clk 0:04:25.3]} 21... Qxc5 {[%clk
0:03:34.2]} 22. Rc1 {[%clk 0:04:24.4]} 22... Qa3 {[%clk 0:03:26.5]} 23. Nxa3
{[%clk 0:04:15]} 1-0

[Event "Live Chess"]
[Site "Chess.com"]
[Date "2024.06.02"]
[Round "-"]
[White "ZombieChainsaw"]
[Black "MagnersCarlsberg2870"]
[Result "0-1"]
[WhiteElo "1789"]
[BlackElo "1784"]
[TimeControl "300"]
[EndTime "7:01:56 PDT"]
[Termination "MagnersCarlsberg2870 won by resignation"]

1. e4 {[%clk 0:04:57.7]} 1... e5 {[%clk 0:04:58.6]} 2. Nc3 {[%clk 0:04:56.3]}
2... Nc6 {[%clk 0:04:56.7]} 3. g3 {[%clk 0:04:55.2]} 3... Nf6 {[%clk 0:04:51.9]}
4. Bg2 {[%clk 0:04:54.2]} 4... Bc5 {[%clk 0:04:49.8]} 5. Nge2 {[%clk 0:04:52.7]}
5... d6 {[%clk 0:04:48.7]} 6. Na4 {[%clk 0:04:43.8]} 6... h5 {[%clk 0:04:41.5]}
7. Nxc5 {[%clk 0:04:41.7]} 7... dxc5 {[%clk 0:04:40.6]} 8. d3 {[%clk 0:04:25.9]}
8... h4 {[%clk 0:04:38.7]} 9. Bg5 {[%clk 0:04:24.1]} 9... hxg3 {[%clk
0:04:36.3]} 10. hxg3 {[%clk 0:04:22.9]} 10... Rxh1+ {[%clk 0:04:34.6]} 11. Bxh1
{[%clk 0:04:22.8]} 11... Bg4 {[%clk 0:04:30.1]} 12. f3 {[%clk 0:04:15.3]} 12...
Be6 {[%clk 0:04:25]} 13. Qd2 {[%clk 0:04:10]} 13... Nd4 {[%clk 0:04:23.8]} 14.
O-O-O {[%clk 0:03:55.2]} 14... Qd6 {[%clk 0:04:21.3]} 15. Bxf6 {[%clk
0:03:48.6]} 15... gxf6 {[%clk 0:04:19.8]} 16. Nc3 {[%clk 0:03:46.3]} 16... b5
{[%clk 0:04:15.5]} 17. f4 {[%clk 0:03:35.5]} 17... b4 {[%clk 0:04:12.8]} 18. Ne2
{[%clk 0:03:27]} 18... a5 {[%clk 0:04:10]} 19. Nxd4 {[%clk 0:03:21.8]} 19...
cxd4 {[%clk 0:04:07.4]} 20. f5 {[%clk 0:03:16.3]} 20... Bxa2 {[%clk 0:04:04.3]}
21. b3 {[%clk 0:03:14.5]} 21... a4 {[%clk 0:04:02.7]} 22. Kb2 {[%clk 0:03:13.6]}
22... axb3 {[%clk 0:04:01.6]} 23. cxb3 {[%clk 0:03:11.2]} 23... Qa6 {[%clk
0:04:00.4]} 24. Qxb4 {[%clk 0:03:02.2]} 24... c5 {[%clk 0:03:54.1]} 25. Qc4
{[%clk 0:02:35]} 25... Qa3+ {[%clk 0:03:51.9]} 26. Kc2 {[%clk 0:02:31.2]} 26...
Rb8 {[%clk 0:03:38.8]} 27. Qa4+ {[%clk 0:02:27]} 27... Qxa4 {[%clk 0:03:35.6]}
28. bxa4 {[%clk 0:02:26.9]} 28... Bb3+ {[%clk 0:03:34.8]} 29. Kd2 {[%clk
0:02:26]} 29... Bxd1 {[%clk 0:03:33.7]} 30. Kxd1 {[%clk 0:02:25.3]} 30... Ra8
{[%clk 0:03:33]} 0-1

[Event "Live Chess"]
[Site "Chess.com"]
[Date "2024.06.02"]
[Round "-"]
[White "CarmelJane"]
[Black "CheckThis4"]
[Result "0-1"]
[WhiteElo "2002"]
[BlackElo "2680"]
[TimeControl "300"]
[EndTime "7:02:23 PDT"]
[Termination "CheckThis4 won by checkmate"]

1. e4 {[%clk 0:04:54.9]} 1... d5 {[%clk 0:04:57.4]} 2. exd5 {[%clk 0:04:52.4]}
2... c6 {[%clk 0:04:57]} 3. dxc6 {[%clk 0:04:50.5]} 3... Nxc6 {[%clk 0:04:56.9]}
4. Bb5 {[%clk 0:04:49.2]} 4... e5 {[%clk 0:04:54.6]} 5. Ne2 {[%clk 0:04:45.5]}
5... Bd6 {[%clk 0:04:52.5]} 6. O-O {[%clk 0:04:44.9]} 6... Ne7 {[%clk
0:04:51.6]} 7. Ng3 {[%clk 0:04:43.6]} 7... O-O {[%clk 0:04:50]} 8. Nc3 {[%clk
0:04:41.3]} 8... f5 {[%clk 0:04:46.6]} 9. d3 {[%clk 0:04:38.9]} 9... Be6 {[%clk
0:04:42]} 10. Bg5 {[%clk 0:04:37]} 10... h6 {[%clk 0:04:39.5]} 11. Bxe7 {[%clk
0:04:35.9]} 11... Qxe7 {[%clk 0:04:39.4]} 12. Re1 {[%clk 0:04:34.9]} 12... Rad8
{[%clk 0:04:37.4]} 13. Qh5 {[%clk 0:04:32.1]} 13... Qf6 {[%clk 0:04:34.6]} 14.
Qf3 {[%clk 0:04:24.1]} 14... Nd4 {[%clk 0:04:32.1]} 15. Qd1 {[%clk 0:04:21.1]}
15... Bb4 {[%clk 0:04:21.2]} 16. Nh5 {[%clk 0:04:07.4]} 16... Qg5 {[%clk
0:03:57.3]} 17. Rxe5 {[%clk 0:03:58]} 17... Bd6 {[%clk 0:03:45]} 18. Rxe6 {[%clk
0:03:39.7]} 18... Nxe6 {[%clk 0:03:43.1]} 19. Bc4 {[%clk 0:03:38.5]} 19... Rfe8
{[%clk 0:03:37.8]} 20. Qf3 {[%clk 0:03:29.3]} 20... Kh8 {[%clk 0:03:35.4]} 21.
Ng3 {[%clk 0:03:23.5]} 21... Nd4 {[%clk 0:03:31.5]} 22. Qxb7 {[%clk 0:03:14.5]}
22... Bxg3 {[%clk 0:03:23.9]} 23. hxg3 {[%clk 0:03:09.5]} 23... Nxc2 {[%clk
0:03:22.6]} 24. Nd5 {[%clk 0:02:33.2]} 24... Nxa1 {[%clk 0:03:17.1]} 25. Nf4
{[%clk 0:02:30.3]} 25... Nc2 {[%clk 0:03:08.3]} 26. Ne6 {[%clk 0:02:25.4]} 26...
Qg6 {[%clk 0:02:52.5]} 27. Nxd8 {[%clk 0:02:18.8]} 27... Re1+ {[%clk 0:02:49.8]}
28. Kh2 {[%clk 0:02:16.1]} 28... Qh5# {[%clk 0:02:48.9]} 0-1

[Event "Live Chess"]
[Site "Chess.com"]
[Date "2024.06.02"]
[Round "-"]
[White "dmitro74"]
[Black "Purple1szed"]
[Result "1/2-1/2"]
[WhiteElo "1751"]
[BlackElo "2021"]
[TimeControl "300"]
[EndTime "7:02:34 PDT"]
[Termination "Game drawn - timeout vs insufficient material"]

1. d4 {[%clk 0:04:57.4]} 1... d5 {[%clk 0:04:58.9]} 2. c4 {[%clk 0:04:56.4]}
2... c6 {[%clk 0:04:57.5]} 3. Nc3 {[%clk 0:04:55.8]} 3... Nf6 {[%clk 0:04:56.4]}
4. Nf3 {[%clk 0:04:54.3]} 4... dxc4 {[%clk 0:04:55.4]} 5. a4 {[%clk 0:04:53]}
5... Bf5 {[%clk 0:04:54.6]} 6. e3 {[%clk 0:04:50.5]} 6... e6 {[%clk 0:04:54.1]}
7. Bxc4 {[%clk 0:04:48.7]} 7... Bb4 {[%clk 0:04:54]} 8. O-O {[%clk 0:04:46.5]}
8... O-O {[%clk 0:04:52.7]} 9. Bd2 {[%clk 0:04:40.8]} 9... c5 {[%clk 0:04:52.1]}
10. Re1 {[%clk 0:04:37.5]} 10... Nc6 {[%clk 0:04:50.8]} 11. dxc5 {[%clk
0:04:31.8]} 11... Bxc5 {[%clk 0:04:49.6]} 12. e4 {[%clk 0:04:27.4]} 12... Bg6
{[%clk 0:04:48.8]} 13. Qe2 {[%clk 0:04:21]} 13... Qb6 {[%clk 0:04:45.4]} 14. Bg5
{[%clk 0:04:11.3]} 14... Ng4 {[%clk 0:04:35.8]} 15. Be3 {[%clk 0:04:01.5]} 15...
Bxe3 {[%clk 0:04:31.8]} 16. fxe3 {[%clk 0:03:59.2]} 16... Rfd8 {[%clk
0:04:26.6]} 17. Rad1 {[%clk 0:03:53.3]} 17... Rxd1 {[%clk 0:04:21.5]} 18. Rxd1
{[%clk 0:03:51.1]} 18... Qxe3+ {[%clk 0:04:16.7]} 19. Qxe3 {[%clk 0:03:46.5]}
19... Nxe3 {[%clk 0:04:16.6]} 20. Rd7 {[%clk 0:03:33.5]} 20... Nxc4 {[%clk
0:04:14.6]} 21. Rxb7 {[%clk 0:03:32.1]} 21... N6e5 {[%clk 0:03:57.3]} 22. b4
{[%clk 0:03:26.1]} 22... Nxf3+ {[%clk 0:03:55.2]} 23. gxf3 {[%clk 0:03:24.4]}
23... h6 {[%clk 0:03:54.3]} 24. Rc7 {[%clk 0:03:18.9]} 24... Ne5 {[%clk
0:03:49.8]} 25. Nb5 {[%clk 0:03:13.2]} 25... a6 {[%clk 0:03:40.7]} 26. Nd6
{[%clk 0:03:09.3]} 26... Nxf3+ {[%clk 0:03:39.8]} 27. Kf2 {[%clk 0:03:05.8]}
27... Nxh2 {[%clk 0:03:37.6]} 28. Kg3 {[%clk 0:03:03.4]} 28... Nf1+ {[%clk
0:03:36.5]} 29. Kf4 {[%clk 0:03:02]} 29... Nd2 {[%clk 0:03:34.2]} 30. b5 {[%clk
0:02:59.5]} 30... axb5 {[%clk 0:03:28.6]} 31. axb5 {[%clk 0:02:57.8]} 31... Nb3
{[%clk 0:03:25.3]} 32. b6 {[%clk 0:02:53.1]} 32... Na5 {[%clk 0:03:22.1]} 33.
Ra7 {[%clk 0:02:46.8]} 33... Rb8 {[%clk 0:03:18.1]} 34. b7 {[%clk 0:02:44.6]}
34... Nc6 {[%clk 0:03:13.2]} 35. Ra6 {[%clk 0:02:30.2]} 35... Nd8 {[%clk
0:02:41.8]} 36. Ra8 {[%clk 0:02:26.7]} 36... Nc6 {[%clk 0:02:40.8]} 37. Ra6
{[%clk 0:02:24.8]} 37... Rxb7 {[%clk 0:02:33.9]} 38. Nxb7 {[%clk 0:02:22.1]}
38... Nd4 {[%clk 0:02:30.3]} 39. Ra8+ {[%clk 0:02:16.9]} 39... Kh7 {[%clk
0:02:29]} 40. Nd6 {[%clk 0:02:15.1]} 40... f6 {[%clk 0:02:09.1]} 41. e5 {[%clk
0:02:05.6]} 41... fxe5+ {[%clk 0:01:48.7]} 42. Kxe5 {[%clk 0:02:03.8]} 42... Nf5
{[%clk 0:01:48.2]} 43. Ne4 {[%clk 0:01:51.3]} 43... Ne7 {[%clk 0:01:37.8]} 44.
Nc5 {[%clk 0:01:45.1]} 44... Bf5 {[%clk 0:01:13]} 45. Nxe6 {[%clk 0:01:40.6]}
45... Bxe6 {[%clk 0:01:12.9]} 46. Kxe6 {[%clk 0:01:39.6]} 46... Ng6 {[%clk
0:01:12.6]} 47. Kf5 {[%clk 0:01:35.8]} 47... Ne7+ {[%clk 0:01:03.9]} 48. Kg4
{[%clk 0:01:32.1]} 48... Nd5 {[%clk 0:00:57.1]} 49. Ra6 {[%clk 0:01:25.9]} 49...
Ne3+ {[%clk 0:00:53.6]} 50. Kg3 {[%clk 0:01:20.4]} 50... Nf5+ {[%clk 0:00:52.5]}
51. Kg4 {[%clk 0:01:18.4]} 51... Nd4 {[%clk 0:00:51.2]} 52. Kg3 {[%clk
0:01:16.8]} 52... h5 {[%clk 0:00:46.8]} 53. Kh4 {[%clk 0:01:11.3]} 53... g6
{[%clk 0:00:45.8]} 54. Kg5 {[%clk 0:01:07.1]} 54... Nf3+ {[%clk 0:00:44.5]} 55.
Kf4 {[%clk 0:01:05.9]} 55... Nd4 {[%clk 0:00:27.5]} 56. Kg5 {[%clk 0:01:02.7]}
56... Nf3+ {[%clk 0:00:26.8]} 57. Kf4 {[%clk 0:01:01.3]} 57... Nh4 {[%clk
0:00:17.6]} 58. Kg3 {[%clk 0:00:57.1]} 58... Nf5+ {[%clk 0:00:16.7]} 59. Kf4
{[%clk 0:00:55.3]} 59... Kh6 {[%clk 0:00:16.6]} 60. Ra8 {[%clk 0:00:52.7]} 60...
h4 {[%clk 0:00:15.5]} 61. Rh8+ {[%clk 0:00:44.4]} 61... Kg7 {[%clk 0:00:14.8]}
62. Ra8 {[%clk 0:00:40.5]} 62... Kf6 {[%clk 0:00:14.6]} 63. Ra6+ {[%clk
0:00:38.1]} 63... Kf7 {[%clk 0:00:14]} 64. Ra7+ {[%clk 0:00:33.9]} 64... Kf6
{[%clk 0:00:13.2]} 65. Rh7 {[%clk 0:00:29.5]} 65... g5+ {[%clk 0:00:10.8]} 66.
Kf3 {[%clk 0:00:27.2]} 66... Nd4+ {[%clk 0:00:08.2]} 67. Ke4 {[%clk 0:00:23.1]}
67... Ne2 {[%clk 0:00:06.7]} 68. Rh6+ {[%clk 0:00:21.5]} 68... Kg7 {[%clk
0:00:05.6]} 69. Ra6 {[%clk 0:00:19.1]} 69... Ng3+ {[%clk 0:00:05.5]} 70. Kf3
{[%clk 0:00:17.3]} 70... h3 {[%clk 0:00:05.4]} 71. Kxg3 {[%clk 0:00:15.6]} 71...
g4 {[%clk 0:00:04.6]} 72. Ra2 {[%clk 0:00:11.6]} 72... h2 {[%clk 0:00:04.5]} 73.
Rxh2 {[%clk 0:00:09.9]} 73... Kg6 {[%clk 0:00:04.4]} 74. Kxg4 {[%clk 0:00:09.1]}
74... Kf6 {[%clk 0:00:04.3]} 75. Re2 {[%clk 0:00:07.8]} 75... Kf7 {[%clk
0:00:03.3]} 76. Kf5 {[%clk 0:00:06.9]} 76... Kg7 {[%clk 0:00:02.7]} 77. Re5
{[%clk 0:00:05]} 77... Kf7 {[%clk 0:00:02.6]} 78. Re6 {[%clk 0:00:03.2]} 78...
Kg7 {[%clk 0:00:02.5]} 79. Re7+ {[%clk 0:00:02.3]} 79... Kh6 {[%clk 0:00:01.2]}
1/2-1/2

[Event "Live Chess"]
[Site "Chess.com"]
[Date "2024.06.02"]
[Round "-"]
[White "GoldsmanB"]
[Black "gobbles19"]
[Result "0-1"]
[WhiteElo "1101"]
[BlackElo "2199"]
[TimeControl "300"]
[EndTime "7:02:47 PDT"]
[Termination "gobbles19 won by resignation"]

1. d4 {[%clk 0:04:57.5]} 1... Nf6 {[%clk 0:04:58.9]} 2. c4 {[%clk 0:04:54.9]}
2... e6 {[%clk 0:04:58.5]} 3. Nc3 {[%clk 0:04:53.5]} 3... c5 {[%clk 0:04:58.2]}
4. d5 {[%clk 0:04:50.9]} 4... exd5 {[%clk 0:04:58.1]} 5. Nxd5 {[%clk 0:04:48.1]}
5... d6 {[%clk 0:04:57.8]} 6. f3 {[%clk 0:04:44.7]} 6... Nxd5 {[%clk 0:04:56.6]}
7. cxd5 {[%clk 0:04:42.5]} 7... g6 {[%clk 0:04:55.2]} 8. e4 {[%clk 0:04:41.5]}
8... Bg7 {[%clk 0:04:54.8]} 9. Be3 {[%clk 0:04:38.8]} 9... O-O {[%clk
0:04:54.1]} 10. Bc4 {[%clk 0:04:37.8]} 10... Bxb2 {[%clk 0:04:51.3]} 11. Rb1
{[%clk 0:04:32.6]} 11... Be5 {[%clk 0:04:50.1]} 12. Ne2 {[%clk 0:04:30.9]} 12...
a6 {[%clk 0:04:46.7]} 13. f4 {[%clk 0:04:24.7]} 13... Bg7 {[%clk 0:04:44.2]} 14.
g3 {[%clk 0:04:23.1]} 14... b5 {[%clk 0:04:43]} 15. Bd3 {[%clk 0:04:19.5]} 15...
c4 {[%clk 0:04:39.1]} 16. Bc2 {[%clk 0:04:18.1]} 16... Nd7 {[%clk 0:04:38.8]}
17. O-O {[%clk 0:04:14.4]} 17... Re8 {[%clk 0:04:35.4]} 18. Bd4 {[%clk
0:04:10.5]} 18... Nf6 {[%clk 0:04:30.3]} 19. e5 {[%clk 0:04:04.9]} 19... dxe5
{[%clk 0:04:28.2]} 20. fxe5 {[%clk 0:04:00.6]} 20... Nxd5 {[%clk 0:04:22.1]} 21.
Bc3 {[%clk 0:03:51.7]} 21... Nxc3 {[%clk 0:04:18.4]} 22. Qxd8 {[%clk 0:03:46.5]}
22... Nxe2+ {[%clk 0:04:17.2]} 0-1

[Event "Live Chess"]
[Site "Chess.com"]
[Date "2024.06.02"]
[Round "-"]
[White "Grace6363"]
[Black "Colm_Buckley"]
[Result "1/2-1/2"]
[WhiteElo "1155"]
[BlackElo "1874"]
[TimeControl "300"]
[EndTime "7:02:48 PDT"]
[Termination "Game drawn by stalemate"]

1. d4 {[%clk 0:04:58.4]} 1... e6 {[%clk 0:04:58.7]} 2. c4 {[%clk 0:04:57.5]}
2... d5 {[%clk 0:04:57.7]} 3. cxd5 {[%clk 0:04:55.4]} 3... exd5 {[%clk
0:04:56.3]} 4. Nf3 {[%clk 0:04:49.3]} 4... c6 {[%clk 0:04:55.2]} 5. a3 {[%clk
0:04:37.2]} 5... Nf6 {[%clk 0:04:51.8]} 6. Bf4 {[%clk 0:04:31]} 6... Bd6 {[%clk
0:04:49.4]} 7. e3 {[%clk 0:04:29.4]} 7... Bxf4 {[%clk 0:04:47.6]} 8. exf4 {[%clk
0:04:28.7]} 8... O-O {[%clk 0:04:46.5]} 9. Nc3 {[%clk 0:04:28.1]} 9... Re8+
{[%clk 0:04:44.5]} 10. Be2 {[%clk 0:04:27.6]} 10... Ne4 {[%clk 0:04:43.5]} 11.
O-O {[%clk 0:04:25]} 11... Qf6 {[%clk 0:04:38.1]} 12. Ne5 {[%clk 0:04:13.6]}
12... Qxf4 {[%clk 0:04:29.7]} 13. g3 {[%clk 0:04:09.7]} 13... Qf5 {[%clk
0:04:20.4]} 14. Bg4 {[%clk 0:04:03.1]} 14... Qg5 {[%clk 0:04:12.1]} 15. h4
{[%clk 0:03:58.1]} 15... Bxg4 {[%clk 0:04:08.1]} 16. hxg5 {[%clk 0:03:56.4]}
16... Bxd1 {[%clk 0:04:06.7]} 17. Raxd1 {[%clk 0:03:55.2]} 17... Nxc3 {[%clk
0:04:05.1]} 18. bxc3 {[%clk 0:03:53.8]} 18... Na6 {[%clk 0:04:02]} 19. Nd7
{[%clk 0:03:44.8]} 19... Rad8 {[%clk 0:03:51]} 20. Nc5 {[%clk 0:03:41.8]} 20...
Nxc5 {[%clk 0:03:48.9]} 21. dxc5 {[%clk 0:03:40.9]} 21... Re6 {[%clk 0:03:47.7]}
22. Rfe1 {[%clk 0:03:40]} 22... Rde8 {[%clk 0:03:46.2]} 23. Rxe6 {[%clk
0:03:39.5]} 23... fxe6 {[%clk 0:03:44.3]} 24. Rd3 {[%clk 0:03:37.1]} 24... e5
{[%clk 0:03:43.1]} 25. f3 {[%clk 0:03:35.9]} 25... Kf7 {[%clk 0:03:41.3]} 26.
Kf2 {[%clk 0:03:35]} 26... Kg6 {[%clk 0:03:40.1]} 27. f4 {[%clk 0:03:34.1]}
27... e4 {[%clk 0:03:35.9]} 28. Re3 {[%clk 0:03:31.6]} 28... Kf5 {[%clk
0:03:32]} 29. a4 {[%clk 0:03:23.5]} 29... b6 {[%clk 0:03:29.8]} 30. cxb6 {[%clk
0:03:19.7]} 30... axb6 {[%clk 0:03:28.6]} 31. Kg2 {[%clk 0:03:18.2]} 31... c5
{[%clk 0:03:21.9]} 32. Kf2 {[%clk 0:03:15.2]} 32... d4 {[%clk 0:03:20.4]} 33.
cxd4 {[%clk 0:03:14.4]} 33... cxd4 {[%clk 0:03:19.1]} 34. Ra3 {[%clk 0:03:12.8]}
34... Ra8 {[%clk 0:03:13.1]} 35. Rb3 {[%clk 0:03:01.5]} 35... Rxa4 {[%clk
0:03:07.8]} 36. Rxb6 {[%clk 0:03:00.7]} 36... Ra2+ {[%clk 0:03:05.7]} 37. Ke1
{[%clk 0:03:00.2]} 37... d3 {[%clk 0:02:57.9]} 38. Rd6 {[%clk 0:02:52.3]} 38...
Kg4 {[%clk 0:02:53.8]} 39. Rd4 {[%clk 0:02:43.3]} 39... Kf3 {[%clk 0:02:51.5]}
40. f5 {[%clk 0:02:38.8]} 40... e3 {[%clk 0:02:43.4]} 41. Rxd3 {[%clk
0:02:19.9]} 41... Ra5 {[%clk 0:02:29.4]} 42. f6 {[%clk 0:02:14.8]} 42... gxf6
{[%clk 0:02:26.7]} 43. gxf6 {[%clk 0:02:14.1]} 43... Rf5 {[%clk 0:02:23.7]} 44.
Rd6 {[%clk 0:02:10.8]} 44... Kxg3 {[%clk 0:02:20.6]} 45. Ke2 {[%clk 0:02:10.2]}
45... Kf4 {[%clk 0:02:17.3]} 46. Re6 {[%clk 0:02:02.3]} 46... h5 {[%clk
0:02:06]} 47. Rxe3 {[%clk 0:02:00.4]} 47... Rxf6 {[%clk 0:01:57.9]} 48. Rf3+
{[%clk 0:01:58.3]} 48... Kg5 {[%clk 0:01:55.9]} 49. Rxf6 {[%clk 0:01:57.3]}
49... Kxf6 {[%clk 0:01:55.2]} 50. Kf2 {[%clk 0:01:57]} 50... Kf5 {[%clk
0:01:54.4]} 51. Kg2 {[%clk 0:01:56.4]} 51... Kg4 {[%clk 0:01:53.6]} 52. Kh1
{[%clk 0:01:56]} 52... Kh3 {[%clk 0:01:52.7]} 53. Kg1 {[%clk 0:01:55.3]} 53...
Kg3 {[%clk 0:01:51.1]} 54. Kh1 {[%clk 0:01:54.8]} 54... h4 {[%clk 0:01:50.2]}
55. Kg1 {[%clk 0:01:54.4]} 55... Kf4 {[%clk 0:01:47.5]} 56. Kh1 {[%clk
0:01:53.9]} 56... Kg4 {[%clk 0:01:46.9]} 57. Kg1 {[%clk 0:01:53.3]} 57... Kg3
{[%clk 0:01:46.2]} 58. Kh1 {[%clk 0:01:52.9]} 58... h3 {[%clk 0:01:45.4]} 59.
Kg1 {[%clk 0:01:52.5]} 59... Kf3 {[%clk 0:01:43.9]} 60. Kh1 {[%clk 0:01:51.8]}
60... Kg4 {[%clk 0:01:40.8]} 61. Kg1 {[%clk 0:01:51]} 61... Kg3 {[%clk
0:01:39.9]} 62. Kh1 {[%clk 0:01:50.5]} 62... h2 {[%clk 0:01:38.9]} 1/2-1/2